bitfinex/quotes_SOLUSD_20260223
["timestamp","ask_amount","ask_price","bid_price","bid_amount"]
[1771888072902,0.48290313,78.626,78.606,0.47576552]
[1771888077504,1e-08,78.63,78.6,5.48396308]
[1771888077705,0.48290313,78.639,78.621,0.47576552]
[1771888078410,0.48290313,78.639,78.601,0.47576552]
[1771888078411,5.48396308,78.63,78.601,0.47576552]
[1771888078613,0.48290313,78.629,78.601,0.47576552]
[1771888078904,0.48290313,78.634,78.601,0.47576552]
[1771888081000,0.48290313,78.629,78.601,0.47576552]
[1771888081603,0.48290313,78.629,78.602,0.47576552]
[1771888083816,0.48290313,78.629,78.6,5.48396308]
[1771888083817,0.48290313,78.629,78.604,0.47576552]
[1771888084722,0.48290313,78.639,78.611,0.47576552]
[1771888085807,0.2,78.64,78.605,12.72183703]
[1771888085808,0.48290313,78.628,78.605,12.72183703]
[1771888086505,0.48290313,78.628,78.605,13.19760255]
[1771888089814,0.48290313,78.626,78.598,0.47576552]
[1771888093019,0.48290313,78.626,78.6,0.47576552]
[1771888095610,0.48290313,78.626,78.601,12.72248444]
[1771888095824,0.48290313,78.626,78.602,0.47576552]
[1771888097723,0.2,78.64,78.575,0.47576552]
[1771888097724,0.48290313,78.619,78.575,0.47576552]
[1771888097929,0.48290313,78.619,78.579,0.49917612]
[1771888098225,0.48290313,78.619,78.574,44.54399673]
[1771888098226,0.48290313,78.619,78.581,0.49917612]
[1771888099629,0.48290313,78.619,78.583,0.49917612]
[1771888100327,0.50491435,78.618,78.583,0.49917612]
[1771888101824,0.50491435,78.618,78.585,0.47763305]
[1771888102132,0.50451203,78.616,78.585,0.47763305]
[1771888107626,0.50451203,78.616,78.587,0.47763305]
[1771888111127,0.50451203,78.609,78.581,0.47763305]
[1771888111435,0.50451203,78.599,78.576,12.72653227]
[1771888111731,0.50451203,78.599,78.577,0.47763305]
[1771888113424,0.50451203,78.599,78.579,0.47763305]
[1771888115124,0.50451203,78.599,78.581,0.47763305]
[1771888115421,0.50451203,78.599,78.572,12.72706706]
[1771888115622,0.50451203,78.598,78.573,0.47763305]
[1771888121243,0.50451203,78.589,78.551,0.47763305]
[1771888121536,63.60386652,78.612,78.544,44.56101038]
[1771888121537,0.50451203,78.609,78.581,0.47763305]
[1771888123943,0.28432314,78.617,78.576,0.47763305]
[1771888123944,0.50451203,78.607,78.576,0.47763305]
[1771888124942,0.50451203,78.589,78.561,0.47763305]
[1771888125932,0.50451203,78.589,78.563,0.47763305]
[1771888127447,0.50451203,78.599,78.571,0.47763305]
[1771888128034,0.48802118,78.597,78.57,12.7274928]
[1771888128445,0.48802118,78.597,78.571,0.46899686]
[1771888129233,0.48802118,78.597,78.565,0.46899686]
[1771888130129,0.48802118,78.595,78.567,0.46899686]
[1771888132244,0.48802118,78.595,78.569,0.46899686]
[1771888132442,0.48802118,78.595,78.57,5.47640487]
[1771888132643,0.48802118,78.595,78.571,0.46899686]
[1771888133542,0.48802118,78.595,78.573,0.46899686]
[1771888137554,0.48802118,78.595,78.569,13.19664642]
[1771888137755,0.48802118,78.595,78.57,0.46899686]
[1771888138158,0.48802118,78.6,78.571,0.46899686]
[1771888140452,0.48802118,78.6,78.573,0.46899686]
[1771888141160,0.48802118,78.598,78.573,0.46899686]
[1771888142638,0.48802118,78.598,78.575,0.46899686]
[1771888143558,0.48802118,78.609,78.575,0.46899686]
[1771888143863,0.48802118,78.609,78.581,0.46899686]
[1771888146157,0.48802118,78.614,78.591,0.46899686]
[1771888146745,31.79411697,78.631,78.591,0.46899686]
[1771888146746,0.48802118,78.618,78.591,0.46899686]
[1771888148260,0.48802118,78.616,78.581,13.19471936]
[1771888148456,0.48802118,78.616,78.582,0.46899686]
[1771888151263,12.72021878,78.615,78.583,12.72539862]
[1771888151464,0.48802118,78.614,78.584,0.46899686]
[1771888154563,0.48802118,78.612,78.586,0.46899686]
[1771888159572,0.48114141,78.61,78.587,12.72475091]
[1771888159760,0.48114141,78.61,78.591,0.49020405]
[1771888160159,0.48114141,78.61,78.588,0.49020405]
[1771888162374,0.50838018,78.608,78.588,0.49020405]
[1771888162874,0.50838018,78.599,78.565,0.50294335]
[1771888164454,12.72297005,78.598,78.565,12.72831413]
[1771888164659,0.50838018,78.597,78.566,0.50294335]
[1771888165072,0.50838018,78.636,78.58,5.47829615]
[1771888165261,0.50838018,78.629,78.581,0.50294335]
[1771888166571,5.47829615,78.63,78.591,0.50294335]
[1771888166572,0.50838018,78.627,78.591,0.50294335]
[1771888171763,0.50838018,78.625,78.593,0.50294335]
[1771888171963,0.50838018,78.619,78.593,0.50294335]
[1771888173174,0.50838018,78.609,78.573,0.50294335]
[1771888173382,0.50838018,78.599,78.577,0.50294335]
[1771888177291,0.50838018,78.597,78.577,0.50294335]
[1771888178479,0.50838018,78.597,78.578,12.72620835]
[1771888179072,0.50838018,78.597,78.579,0.50294335]
[1771888179278,12.72185583,78.605,78.581,0.50294335]
[1771888179487,0.50838018,78.614,78.581,0.50294335]
[1771888179688,0.50838018,78.614,78.591,0.50294335]
[1771888179989,13.22789026,78.62,78.591,0.50294335]
[1771888180490,12.71891423,78.624,78.601,0.50294335]
[1771888181686,0.50838018,78.631,78.603,0.50294335]
[1771888186293,0.50838018,78.631,78.605,0.50294335]
[1771888187491,13.22617237,78.63,78.607,0.50294335]
[1771888188372,0.47797443,78.629,78.607,0.50294335]
[1771888188980,12.71779219,78.63,78.611,0.49277069]
[1771888189486,0.2,78.64,78.612,0.49277069]
[1771888189487,0.47797443,78.638,78.612,0.49277069]
[1771888189689,12.71633667,78.639,78.612,0.49277069]
[1771888190276,0.47797443,78.638,78.612,0.49277069]
[1771888191896,0.47797443,78.636,78.614,0.49277069]
[1771888194973,0.47797443,78.636,78.615,12.72021878]
[1771888195178,0.47797443,78.636,78.616,0.49277069]
[1771888197201,0.2,78.64,78.592,63.61967066]
[1771888197202,0.2,78.64,78.621,0.49277069]
[1771888198902,0.2,78.64,78.623,0.49277069]
[1771888201186,0.2,78.64,78.601,0.49277069]
[1771888201187,0.47797443,78.638,78.601,0.49277069]
[1771888202598,0.47797443,78.638,78.611,0.49277069]
[1771888205112,0.47797443,78.636,78.613,0.49277069]
[1771888205410,0.47797443,78.636,78.61,5.47829615]
[1771888205616,0.47797443,78.636,78.603,0.49277069]
[1771888206515,12.71698353,78.635,78.603,0.49277069]
[1771888206714,0.47797443,78.634,78.603,12.7221183]
[1771888206923,0.47797443,78.634,78.604,0.49277069]
[1771888207112,0.47797443,78.619,78.587,0.49277069]
[1771888207703,0.47797443,78.619,78.591,0.49277069]
[1771888210954,0.47797443,78.599,78.572,0.49277069]
[1771888212824,0.47797443,78.599,78.512,141.74]
[1771888212825,0.47797443,78.597,78.567,0.49277069]
[1771888213129,0.47797443,78.594,78.567,0.49277069]
[1771888214929,31.80417353,78.607,78.571,0.49277069]
[1771888215135,5.47983897,78.61,78.581,0.49277069]
[1771888215330,0.47797443,78.609,78.581,0.49277069]
[1771888218032,0.46456389,78.607,78.583,0.46089068]
[1771888219749,5.47983897,78.6,78.583,0.46089068]
[1771888219949,0.46456389,78.589,78.566,0.46089068]
[1771888220149,5.47983897,78.59,78.568,0.46089068]
[1771888220558,0.46456389,78.589,78.568,0.46089068]
[1771888220857,0.46456389,78.589,78.551,0.47098119]
[1771888221032,18.20423956,78.59,78.551,0.47098119]
[1771888221033,0.48546131,78.58,78.551,0.47098119]
[1771888221231,5.47983897,78.58,78.551,0.47098119]
[1771888221834,0.48546131,78.579,78.551,0.47098119]
[1771888222034,0.48546131,78.569,78.54,5.47983897]
[1771888222235,0.48546131,78.569,78.541,0.47098119]
[1771888222456,0.48546131,78.575,78.542,0.47098119]
[1771888222739,0.48546131,78.575,78.551,0.47098119]
[1771888223845,3.69383402,78.596,78.551,0.47098119]
[1771888223846,13.21004356,78.589,78.551,0.47098119]
[1771888224052,13.21004356,78.589,78.561,0.47098119]
[1771888226453,13.21004356,78.589,78.562,0.47098119]
[1771888229846,12.72458225,78.589,78.564,0.47098119]
[1771888230065,3.69383402,78.607,78.563,12.72863816]
[1771888230066,0.48546131,78.605,78.571,0.47098119]
[1771888230866,0.48546131,78.605,78.581,0.47098119]
[1771888231048,5.47983897,78.6,78.581,0.47098119]
[1771888231247,5.96530028,78.6,78.581,0.47098119]
[1771888232166,0.48546131,78.6,78.581,13.19658121]
[1771888232469,0.48546131,78.589,78.562,0.47098119]
[1771888233041,5.47983897,78.58,78.562,0.47098119]
[1771888233248,0.48546131,78.582,78.562,0.47098119]
[1771888235160,0.48546131,78.582,78.563,13.19961935]
[1771888235461,0.48546131,78.582,78.563,0.47098119]
[1771888236572,0.48546131,78.582,78.557,0.47098119]
[1771888239252,0.48546131,78.582,78.561,0.47098119]
[1771888240369,0.48546131,78.582,78.562,13.19978137]
[1771888240777,0.48546131,78.582,78.563,0.47098119]
[1771888241149,0.48546131,78.587,78.563,0.47098119]
[1771888245080,12.72491283,78.586,78.563,0.47098119]
[1771888245384,0.48546131,78.585,78.563,0.47098119]
[1771888250978,0.46135411,78.583,78.563,0.47098119]
[1771888252577,0.46135411,78.581,78.563,0.47098119]
[1771888254786,0.46135411,78.598,78.566,0.47880566]
[1771888255092,0.46135411,78.589,78.566,0.47880566]
[1771888256391,0.46135411,78.594,78.566,0.47880566]
[1771888257189,12.72334474,78.596,78.571,0.47880566]
[1771888257405,0.46135411,78.602,78.581,0.47880566]
[1771888257979,0.46135411,78.599,78.581,0.47880566]
[1771888259596,0.46135411,78.599,78.583,0.47880566]
[1771888261595,0.46135411,78.599,78.584,12.72523668]
[1771888261801,0.46135411,78.599,78.585,0.47880566]
[1771888263799,0.46135411,78.599,78.58,0.47880566]
[1771888265299,0.46135411,78.597,78.571,0.47880566]
[1771888265601,0.46135411,78.589,78.561,0.47880566]
[1771888266502,0.46135411,78.589,78.561,13.20776786]
[1771888266818,0.46135411,78.589,78.562,0.47880566]
[1771888267515,0.46135411,78.589,78.563,12.72863816]
[1771888267798,0.46135411,78.589,78.564,0.47880566]
[1771888270096,0.46135411,78.579,78.553,0.47880566]
[1771888271513,0.46135411,78.578,78.555,0.47880566]
[1771888273293,0.46135411,78.578,78.557,0.47880566]
[1771888273603,0.46135411,78.576,78.552,0.47880566]
[1771888273788,0.46135411,78.569,78.552,0.47880566]
[1771888277715,0.38754857,78.569,78.552,0.47880566]
[1771888283421,5.48315175,78.59,78.561,0.47218124]
[1771888283628,0.48821298,78.596,78.571,0.47218124]
[1771888287828,12.72345569,78.595,78.571,0.47218124]
[1771888289527,6.65138825,78.601,78.581,0.47218124]
[1771888289830,12.72220084,78.603,78.581,0.47218124]
[1771888290706,0.48821298,78.604,78.581,0.47218124]
[1771888291918,0.48821298,78.589,78.567,0.47218124]
[1771888293017,0.48821298,78.589,78.568,0.47218124]
[1771888299612,6.65074662,78.61,78.568,0.47218124]
[1771888299613,0.48821298,78.587,78.568,0.47218124]
[1771888303037,0.48821298,78.587,78.569,0.47218124]
[1771888305727,0.48821298,78.59,78.571,0.47218124]
[1771888306140,12.724106,78.591,78.571,0.47218124]
[1771888308942,0.4988085,78.59,78.571,0.47218124]
[1771888313137,0.4988085,78.589,78.562,0.47407593]
[1771888314534,0.4988085,78.587,78.563,12.72863816]
[1771888314735,0.4988085,78.587,78.564,0.47407593]
[1771888315935,12.72458899,78.588,78.56,0.47407593]
[1771888315936,0.4988085,78.579,78.56,0.47407593]
[1771888316135,12.72458899,78.588,78.544,0.47407593]
[1771888316136,0.4988085,78.569,78.544,0.47407593]
[1771888316545,0.4988085,78.569,78.546,0.47407593]
[1771888316850,0.4988085,78.567,78.546,0.47407593]
[1771888318749,0.4988085,78.587,78.561,0.47407593]
[1771888320353,0.4988085,78.569,78.548,0.47407593]
[1771888321250,0.4988085,78.567,78.543,12.73176656]
[1771888321549,12.72708245,78.573,78.544,0.47407593]
[1771888321934,0.4988085,78.572,78.544,0.47407593]
[1771888323243,0.4988085,78.57,78.546,0.47407593]
[1771888329162,12.72543457,78.583,78.561,0.47407593]
[1771888329744,13.22424307,78.583,78.561,0.47407593]
[1771888330954,0.4988085,78.582,78.561,0.47407593]
[1771888331155,0.4988085,78.58,78.556,0.47407593]
[1771888333254,0.4988085,78.58,78.558,0.47407593]
[1771888333770,0.4988085,78.578,78.558,0.47407593]
[1771888333971,0.4988085,78.578,78.546,0.47407593]
[1771888334158,0.4988085,78.578,78.547,12.73123098]
[1771888334469,0.4988085,78.578,78.548,0.47407593]
[1771888335561,0.4988085,78.578,78.551,0.47407593]
[1771888335768,0.4988085,78.585,78.561,0.47407593]
[1771888336153,13.22388325,78.585,78.561,0.47407593]
[1771888336470,0.4988085,78.584,78.561,0.47407593]
[1771888337570,12.72539862,78.583,78.561,0.47407593]
[1771888339155,13.2232806,78.583,78.561,0.47407593]
[1771888341069,12.72539862,78.583,78.561,0.47407593]
[1771888341267,13.20884497,78.583,78.561,0.47407593]
[1771888341568,12.7257225,78.581,78.561,0.47407593]
[1771888341772,13.20916885,78.581,78.561,0.47407593]
[1771888341961,0.48344635,78.58,78.561,0.47407593]
[1771888343755,0.48344635,78.578,78.558,0.47043586]
[1771888346080,0.48344635,78.576,78.548,0.47043586]
[1771888347578,0.48344635,78.574,78.548,0.47043586]
[1771888348781,0.48344635,78.574,78.55,0.47043586]
[1771888352282,0.48344635,78.572,78.55,0.47043586]
[1771888356684,0.48344635,78.57,78.55,0.47043586]
[1771888358690,0.48344635,78.57,78.552,0.47043586]
[1771888361286,0.48344635,78.568,78.552,0.47043586]
[1771888363182,0.48344635,78.574,78.552,0.47043586]
[1771888365780,0.48344635,78.572,78.552,0.47043586]
[1771888368300,0.46231069,78.57,78.552,0.47043586]
[1771888371291,0.46231069,78.568,78.548,0.48141623]
[1771888373999,0.46231069,78.568,78.551,0.48141623]
[1771888375904,0.46231069,78.566,78.551,0.48141623]
[1771888378891,0.46231069,78.566,78.521,5.36086188]
[1771888378892,0.46231069,78.559,78.515,0.48141623]
[1771888379097,0.46231069,78.539,78.515,0.48141623]
[1771888379297,5.0,78.533,78.515,0.48141623]
[1771888381708,5.0,78.533,78.517,0.48141623]
[1771888382513,5.0,78.533,78.511,11.56573429]
[1771888382701,5.46231069,78.533,78.511,11.56573429]
[1771888384389,5.46231069,78.533,78.512,0.48141623]
[1771888385411,0.46231069,78.533,78.512,0.48141623]
[1771888386210,0.46231069,78.543,78.521,0.48141623]
[1771888386413,12.73197523,78.543,78.521,0.48141623]
[1771888386614,0.46231069,78.542,78.521,0.48141623]
[1771888390009,12.73220356,78.541,78.521,0.48141623]
[1771888390217,0.46231069,78.54,78.521,0.48141623]
[1771888391416,0.46231069,78.538,78.519,12.73561031]
[1771888392119,0.46231069,78.538,78.491,5.36086188]
[1771888392120,0.46231069,78.538,78.502,31.84592198]
[1771888392295,0.46231069,78.538,78.503,0.48141623]
[1771888392496,0.46231069,78.529,78.5,0.1]
[1771888393418,12.73431132,78.528,78.5,12.83883946]
[1771888393718,0.46231069,78.527,78.501,0.48141623]
[1771888395930,0.46231069,78.525,78.5,18.04468379]
[1771888397820,0.5011207,78.523,78.501,0.1698241]
[1771888399597,0.5011207,78.538,78.511,0.17093288]
[1771888400009,0.5011207,78.538,78.521,0.17202893]
[1771888401620,0.5011207,78.538,78.522,0.1741834]
[1771888402925,0.5011207,78.538,78.52,5.48959062]
[1771888403508,12.73188693,78.543,78.52,5.48959062]
[1771888403509,0.51749211,78.544,78.52,5.48959062]
[1771888403706,12.73140828,78.546,78.53,5.48959062]
[1771888403910,6.65560435,78.562,78.53,5.48959062]
[1771888403911,0.51749211,78.569,78.53,5.48959062]
[1771888404926,0.51749211,78.565,78.53,5.48959062]
[1771888406134,0.51749211,78.563,78.531,12.73382485]
[1771888407733,0.51749211,78.561,78.532,0.02282712]
[1771888408817,0.51749211,78.559,78.532,0.02282712]
[1771888410033,0.51749211,78.557,78.532,0.02282712]
[1771888413818,0.51749211,78.549,78.521,0.04522503]
[1771888415936,0.51749211,78.549,78.522,0.05235258]
[1771888417744,5.48959062,78.56,78.502,63.69264477]
[1771888417745,12.73252778,78.539,78.502,0.28432314]
[1771888417923,0.5436684,78.529,78.489,5.36086188]
[1771888418237,0.5436684,78.529,78.491,0.28432314]
[1771888418449,0.5436684,78.519,78.49,5.58959062]
[1771888418936,0.5436684,78.519,78.49,0.1]
[1771888419330,0.5436684,78.519,78.49,5.58959062]
[1771888419530,0.5436684,78.519,78.491,44.59109961]
[1771888420126,0.5436684,78.518,78.491,44.59109961]
[1771888421641,0.5436684,78.518,78.492,0.02042068]
[1771888430952,0.5436684,78.518,78.5,5.48959062]
[1771888433339,0.5436684,78.518,78.5,18.22828295]
[1771888438449,0.5436684,78.518,78.5,18.29730336]
[1771888440347,0.5436684,78.518,78.5,18.22828295]
[1771888440544,0.5436684,78.53,78.51,5.48959062]
[1771888440749,0.5436684,78.53,78.511,0.07664925]
[1771888442773,0.5436684,78.53,78.509,12.737234]
[1771888442945,0.5436684,78.53,78.509,12.81882422]
[1771888443345,0.5436684,78.53,78.51,5.57118084]
[1771888443550,0.5436684,78.53,78.511,0.08159022]
[1771888444352,0.5436684,78.53,78.512,0.08401822]
[1771888447862,0.5436684,78.53,78.508,0.09345454]
[1771888449067,0.5436684,78.547,78.521,0.09574627]
[1771888449367,0.5436684,78.547,78.517,0.09574627]
[1771888449569,0.5436684,78.547,78.52,5.48959062]
[1771888449773,0.5436684,78.547,78.521,0.09801168]
[1771888453660,0.5436684,78.545,78.522,0.10465297]
[1771888456472,0.5436684,78.544,78.522,0.10465297]
[1771888459178,0.56502298,78.542,78.522,0.10465297]
[1771888470482,0.59183939,78.559,78.531,0.14176765]
[1771888471476,0.59183939,78.558,78.532,0.14350446]
[1771888474791,0.59183939,78.556,78.532,0.14350446]
[1771888476592,0.59183939,78.554,78.532,0.14350446]
[1771888481599,0.59183939,78.552,78.532,0.14350446]
[1771888481986,0.59183939,78.552,78.528,0.16134183]
[1771888482800,0.59183939,78.549,78.525,0.16285381]
[1771888484310,0.59183939,78.549,78.522,0.16434842]
[1771888493817,0.61750802,78.56,78.531,0.1796984]
[1771888495716,0.61750802,78.56,78.533,0.18099953]
[1771888498924,0.61750802,78.56,78.535,0.18605633]
[1771888500526,6.65452733,78.581,78.55,5.48683626]
[1771888500724,0.61750802,78.58,78.551,0.18728444]
[1771888500947,0.61750802,78.588,78.561,0.18849844]
[1771888501513,0.61750802,78.588,78.553,0.18849844]
[1771888501713,0.61750802,78.579,78.553,0.18849844]
[1771888501918,0.61750802,78.579,78.552,12.73042061]
[1771888502629,0.61750802,78.579,78.553,0.1896985]
[1771888504219,0.61750802,78.579,78.552,12.73042061]
[1771888504415,0.61750802,78.577,78.548,12.92302011]
[1771888504616,0.61750802,78.577,78.548,12.73096269]
[1771888505827,0.61750802,78.577,78.551,0.19436247]
[1771888506930,0.61750802,78.577,78.553,0.19549517]
[1771888507133,0.61750802,78.575,78.553,0.19549517]
[1771888508135,0.61750802,78.575,78.55,5.48683626]
[1771888508630,0.61750802,78.575,78.549,0.19661486]
[1771888508936,0.61750802,78.575,78.547,12.73122489]
[1771888512639,0.61750802,78.573,78.547,0.20202335]
[1771888514241,0.61750802,78.573,78.55,5.68990432]
[1771888514420,0.61750802,78.573,78.551,0.20306806]
[1771888515340,0.61750802,78.571,78.55,5.48683626]
[1771888517244,0.61750802,78.571,78.551,12.73058267]
[1771888521342,0.61750802,78.571,78.547,0.20410077]
[1771888521343,0.59979077,78.569,78.547,12.731161]
[1771888521532,0.59979077,78.569,78.536,12.73301415]
[1771888522747,0.59979077,78.567,78.536,0.21287742]
[1771888522946,0.59979077,78.567,78.551,0.21287742]
[1771888525451,0.64931153,78.571,78.56,5.48277902]
[1771888525652,0.64931153,78.576,78.561,0.21649466]
[1771888525831,0.64931153,78.576,78.56,5.48277902]
[1771888526746,12.72669424,78.575,78.56,5.48277902]
[1771888527051,0.64931153,78.574,78.56,5.48277902]
[1771888528650,0.64931153,78.574,78.552,0.21824156]
[1771888534456,0.64931153,78.572,78.552,0.21824156]
[1771888538247,0.64931153,78.572,78.551,12.73050528]
[1771888538492,0.64931153,78.572,78.544,0.22639547]
[1771888540354,0.64931153,78.572,78.552,0.22791624]
[1771888540552,0.64931153,78.572,78.554,0.22791624]
[1771888548580,15.0,97.6,78.555,0.62598922]
[1771888548786,5.68277902,78.62,78.581,0.62598922]
[1771888548988,0.64049254,78.597,78.58,5.48277902]
[1771888550970,0.64049254,78.597,78.581,12.7257225]
[1771888552783,0.64049254,78.597,78.581,12.97785801]
[1771888556799,0.64049254,78.597,78.582,0.25347047]
[1771888556983,0.64049254,78.597,78.583,12.72539862]
[1771888557189,38.45083587,78.617,78.341,92.84897811]
[1771888557190,0.66315197,78.589,78.45,0.1]
[1771888557376,0.66315197,78.589,78.324,49.9956036]
[1771888557377,0.64049254,78.486,78.431,30.0]
[1771888557685,5.48277902,78.45,78.432,0.62598922]
[1771888558470,5.48277902,78.44,78.403,3.69383402]
[1771888558765,5.48277902,78.44,78.365,108.38268536]
[1771888558766,5.48277902,78.43,78.39,12.75657063]
[1771888558965,5.48277902,78.43,78.393,3.69383402]
[1771888559165,0.64049254,78.444,78.4,5.48277902]
[1771888559383,0.64049254,78.449,78.401,5.64518502]
[1771888560290,5.48277902,78.44,78.401,5.36086188]
[1771888560493,5.48277902,78.44,78.403,5.36086188]
[1771888560787,5.48277902,78.44,78.402,12.75477666]
[1771888560788,5.48277902,78.44,78.415,0.28432314]
[1771888560974,5.48277902,78.44,78.402,12.75477666]
[1771888560975,5.48277902,78.44,78.416,0.4167126]
[1771888561181,3.69383402,78.472,78.08,92.84897811]
[1771888561182,5.48277902,78.43,78.408,0.4167126]
[1771888562985,6.12327156,78.43,78.408,0.4167126]
[1771888563166,0.64049254,78.429,78.403,0.28432314]
[1771888563370,0.64049254,78.429,78.404,0.28432314]
[1771888563570,13.39087823,78.429,78.404,0.70506787]
[1771888563797,13.39087823,78.429,78.405,0.42262699]
[1771888564004,0.64049254,78.419,78.398,57.36]
[1771888566286,12.75119183,78.425,78.399,0.4263269]
[1771888566481,5.48277902,78.43,78.405,0.4263269]
[1771888566785,13.39051047,78.432,78.405,0.4263269]
[1771888566986,5.48277902,78.43,78.405,0.4263269]
[1771888567693,0.64049254,78.429,78.405,0.4263269]
[1771888572804,0.64049254,78.435,78.405,0.4263269]
[1771888573899,0.66906376,78.433,78.406,57.42]
[1771888575597,12.749898,78.432,78.406,57.42]
[1771888576387,13.41896176,78.432,78.406,57.42]
[1771888577201,5.48277902,78.43,78.406,57.42]
[1771888577508,5.48277902,78.43,78.406,56.27092902]
[1771888577805,5.48277902,78.43,78.407,0.02049088]
[1771888578008,12.75022312,78.43,78.407,0.02049088]
[1771888578188,18.23300214,78.43,78.407,0.02049088]
[1771888579507,18.92282445,78.43,78.407,0.02049088]
[1771888583012,56.47246139,78.48,78.406,56.27092902]
[1771888583013,0.6870877,78.477,78.425,0.14216157]
[1771888583307,5.50353757,78.45,78.425,0.14216157]
[1771888583537,0.6870877,78.449,78.425,0.14216157]
[1771888583690,0.6870877,78.449,78.415,0.14216157]
[1771888584115,0.6870877,78.447,78.415,0.14216157]
[1771888584313,0.6870877,78.447,78.416,5.50302345]
[1771888584514,0.6870877,78.447,78.418,5.64518502]
[1771888589423,0.6870877,78.447,78.42,0.28432314]
[1771888591397,12.74664312,78.453,78.422,0.28432314]
[1771888591610,0.6870877,78.452,78.423,0.02067784]
[1771888593418,0.6870877,78.45,78.423,0.02067784]
[1771888593805,0.6870877,78.45,78.421,12.75168641]
[1771888593806,0.6870877,78.45,78.421,11.97898399]
[1771888594500,12.74713508,78.449,78.421,11.97898399]
[1771888595811,12.74713508,78.449,78.422,0.28432314]
[1771888597707,0.69742662,78.449,78.422,0.28432314]
[1771888599013,0.69742662,78.449,78.423,57.44]
[1771888600217,13.44472419,78.448,78.423,57.44]
[1771888601726,13.44472419,78.448,78.424,0.02081173]
[1771888603916,13.44472419,78.448,78.423,56.97595383]
[1771888604318,0.70783248,78.453,78.423,56.97595383]
[1771888605432,0.70783248,78.451,78.423,56.97595383]
[1771888607232,0.70783248,78.479,78.431,5.64518502]
[1771888607444,12.742587,78.477,78.437,5.64518502]
[1771888607813,13.45041948,78.477,78.437,5.64518502]
[1771888608130,0.70783248,78.476,78.437,5.64518502]
[1771888611437,0.70783248,78.474,78.439,0.28432314]
[1771888611638,0.70783248,78.469,78.44,0.02093216]
[1771888612321,0.70783248,78.469,78.442,0.3052553]
[1771888612523,0.70783248,78.469,78.443,0.02093216]
[1771888614018,0.70783248,78.468,78.443,0.02093216]
[1771888615122,0.70783248,78.468,78.442,0.28432314]
[1771888615349,12.74421094,78.467,78.442,0.28432314]
[1771888615642,0.70783248,78.466,78.442,0.28432314]
[1771888622049,0.70783248,78.466,78.443,57.42]
[1771888622742,0.70783248,78.466,78.444,0.04020689]
[1771888623233,0.70783248,78.472,78.444,0.04020689]
[1771888623432,0.70783248,78.477,78.446,0.04020689]
[1771888624642,0.70783248,78.477,78.448,0.0418407]
[1771888624832,0.70783248,78.476,78.448,0.0418407]
[1771888626247,0.70783248,78.476,78.45,0.04505225]
[1771888628453,0.70783248,78.476,78.451,0.28432314]
[1771888629257,0.70783248,78.476,78.451,0.3340557]
[1771888630255,0.70783248,78.476,78.452,0.05125697]
[1771888631449,0.70783248,78.469,78.443,57.42]
[1771888631653,0.70783248,78.469,78.453,56.68730124]
[1771888631857,0.70783248,78.469,78.453,55.95460248]
[1771888632556,0.69596514,78.468,78.453,55.95460248]
[1771888633448,0.69596514,78.509,78.454,0.69193572]
[1771888633646,0.69596514,78.489,78.454,0.69193572]
[1771888633847,12.73739316,78.509,78.454,0.69193572]
[1771888633848,0.69596514,78.479,78.454,0.69193572]
[1771888634044,0.69596514,78.479,78.453,55.95460248]
[1771888635652,0.69596514,78.477,78.453,55.95460248]
[1771888637742,0.69596514,78.475,78.453,55.95460248]
[1771888640370,0.69596514,78.475,78.431,31.87495986]
[1771888640371,0.72168014,78.459,78.424,0.73036727]
[1771888640549,0.72168014,78.449,78.424,0.73036727]
[1771888642655,0.71024116,78.447,78.424,0.73036727]
[1771888642965,0.71024116,78.447,78.416,0.68054513]
[1771888643672,0.71024116,78.445,78.416,0.68054513]
[1771888646272,0.71024116,78.443,78.416,0.68054513]
[1771888647470,0.71024116,78.443,78.418,0.68054513]
[1771888648771,13.45851376,78.442,78.418,0.68054513]
[1771888649979,0.71024116,78.441,78.418,0.68054513]
[1771888652581,0.71024116,78.441,78.42,0.68054513]
[1771888652984,13.45881277,78.441,78.42,0.68054513]
[1771888653282,0.71024116,78.44,78.42,0.68054513]
[1771888655292,0.71024116,78.438,78.42,0.68054513]
[1771888655496,0.71024116,78.429,78.409,0.68054513]
[1771888655788,0.71024116,78.419,78.388,0.68054513]
[1771888655966,0.71024116,78.409,78.388,0.68054513]
[1771888656386,0.71024116,78.409,78.389,0.68054513]
[1771888664774,6.66023682,78.44,78.4,5.50125301]
[1771888665085,5.50125301,78.45,78.404,0.8227067]
[1771888665292,5.50125301,78.44,78.412,0.68054513]
[1771888665885,5.50125301,78.45,78.412,0.68054513]
[1771888666288,5.50125301,78.44,78.412,0.68054513]
[1771888666970,0.68027657,78.439,78.412,0.68054513]
[1771888672193,44.61497278,78.449,78.412,0.68054513]
[1771888672194,0.6721815,78.437,78.412,0.68054513]
[1771888675889,31.8678377,78.449,78.412,0.68054513]
[1771888675890,0.66346344,78.435,78.412,0.68054513]
[1771888678576,0.65925317,78.433,78.412,0.68054513]
[1771888684096,12.749898,78.432,78.412,0.68054513]
[1771888689808,12.74942269,78.435,78.412,0.68054513]
[1771888690190,0.63593584,78.448,78.421,0.70426415]
[1771888690396,0.63593584,78.445,78.421,0.70426415]